[Event "World Junior U20 Girls 2018"]
[Site "Gebze"]
[Date "2018.09.11"]
[Round "7"]
[White "Tokhirjonova, Gulrukhbegim"]
[Black "Mahalakshmi, M."]
[Result "1-0"]
[ECO "B12"]
[WhiteElo "2369"]
[BlackElo "2213"]
[Annotator "NA"]
[PlyCount "125"]
[EventDate "2018.09.05"]
[EventType "swiss"]
[EventCountry "TUR"]
[SourceTitle "playchess.com"]
[Source "ChessBase"]
[SourceQuality "1"]
[TimeControl "40/5400+30:1800+30"]

1. e4 {[%emt 0:00:30]} c6 {[%emt 0:00:30]} 2. d4 {[%emt 0:00:30]} d5 {[%emt 0:00:30]} 3. e5 {[%emt 0:00:30]} c5 {[%emt 0:00:00]} 4. Nf3 {[%emt 0:00:30]} cxd4 {[%emt 0:00:30]} 5. Nxd4 {[%emt 0:00:00]} e6 {[%emt 0:00:30] LiveBook: 36 Partien B12: Caro-Kann (Vorstoß-Variante)} 6. c4 {[%emt 0:00:00]} Bc5 {[%emt 0:00:30]} 7. Nb3 {[%emt 0:05:30]} Bb6 {[%emt 0:00:00]} 8. Nc3 {[%emt 0:02:30]} Ne7 {[%emt 0:01:30]} 9. Qg4 $146 {[%emt 0:16:30]} ({Vorgänger:} 9. Bg5 Nbc6 10. cxd5 exd5 11. Bxe7 Qxe7 12. Nxd5 Qxe5+ 13. Qe2 {0-1 (45) Nijboer,F (2492)-Van Foreest,J (2641) Hilversum 2018}) 9... O-O {[%emt 0:09:30]} 10. Bg5 {[%emt 0:05:30]} Qc7 {[%emt 0:04:30]} 11. c5 {[%emt 0:14:30]} Qxe5+ {[%emt 0:08:30]} 12. Be2 {[%emt 0:00:30]} Bd8 {[%emt 0:02:30]} 13. f4 {[%emt 0:02:30]} Qc7 {[%emt 0:05:30]} 14. Nb5 {[%emt 0:06:30]} Qc6 {[%emt 0:10:30]} 15. O-O {[%emt 0:06:30]} Nf5 {[%emt 0:06:30]} 16. Bxd8 {[%emt 0:02:30]} Rxd8 {[%emt 0:01:30]} 17. Bd3 {[%emt 0:00:30]} Re8 {[%emt 0:13:30]} 18. Qh3 {[%emt 0:04:30]} g6 {[%emt 0:05:30]} 19. g4 {[%emt 1:18:30]} a6 {[%emt 1:17:30]} 20. a4 {[%emt 0:00:30]} Ng7 {[%emt 0:00:30]} 21. Qe3 {[%emt 0:00:30]} Qd7 {[%emt 0:00:30]} 22. Nd6 {[%emt 0:00:30]} Rf8 {[%emt 0:00:30]} 23. Nd4 {[%emt 0:00:30]} e5 {[%emt 0:00:30]} 24. fxe5 {[%emt 0:00:30]} Qxg4+ {[%emt 0:00:30]} 25. Kh1 {[%emt 0:00:30]} Nc6 {[%emt 0:01:30]} 26. Rf4 {[%emt 0:03:58]} Qg5 {[%emt 0:03:54]} 27. Nxc6 {[%emt 0:03:47]} bxc6 {[%emt 0:00:16]} 28. Rg1 {[%emt 0:00:00]} Qe7 {[%emt 0:01:09]} 29. Rf6 {[%emt 0:01:31]} Rb8 {[%emt 0:04:29]} 30. Qg5 {[%emt 0:07:33]} Qa7 {[%emt 0:02:15]} 31. Nxc8 {[%emt 0:00:37]} Rbxc8 {[%emt 0:01:34]} 32. b4 {[%emt 0:00:48]} Rfe8 {[%emt 0:03:02]} 33. Rgf1 {[%emt 0:01:00]} Rc7 {[%emt 0:01:08]} 34. R1f3 {[%emt 0:02:06]} Rce7 {[%emt 0:01:10]} 35. Rxc6 {[%emt 0:01:41]} Rxe5 {[%emt 0:00:31]} 36. Qf6 {[%emt 0:00:15]} Qd7 {[%emt 0:01:44]} 37. Rd6 {[%emt 0:00:20]} Re1+ {[%emt 0:02:12]} 38. Bf1 {[%emt 0:00:02]} Qc7 {[%emt 0:01:30]} 39. Rc6 {[%emt 0:00:08]} Qd7 {[%emt 0:00:38]} 40. Rd6 {[%emt 0:00:00]} Qc7 {[%emt 0:00:00]} 41. Rxd5 {[%emt 0:12:14]} R1e6 {[%emt 0:02:28]} 42. Qf4 {[%emt 0:01:30]} Qb7 {[%emt 0:02:30]} 43. Qd2 {[%emt 0:04:43]} Nf5 {[%emt 0:03:30]} 44. b5 {[%emt 0:04:33]} axb5 {[%emt 0:03:30]} 45. axb5 {[%emt 0:00:02]} Qa8 {[%emt 0:03:30]} (45... Ne3 $11 {keeps the balance.} 46. c6 Qb6 47. Rxe3 Rxe3) 46. c6 {[%emt 0:01:06]} Re1 {[%emt 0:03:10]} 47. Rdxf5 $18 {[%emt 0:02:28]} gxf5 {[%emt 0:01:11]} 48. Qg5+ {[%emt 0:00:01]} Kf8 {[%emt 0:00:16]} 49. Qxf5 {[%emt 0:01:19]} Qa2 {[%emt 0:03:13]} 50. Qc5+ {[%emt 0:01:03]} R1e7 {[%emt 0:01:57]} 51. Qd6 {[%emt 0:01:03]} Qe6 {[%emt 0:00:56]} 52. Qxe6 {[%emt 0:00:30]} Rxe6 {[%emt 0:00:10]} 53. Bc4 {[%emt 0:00:00]} Re1+ {[%emt 0:05:45]} 54. Kg2 {[%emt 0:00:09]} Ke7 {[%emt 0:00:00]} 55. b6 {[%emt 0:01:09]} Kd6 {[%emt 0:02:13]} 56. c7 {[%emt 0:00:27]} Rb1 {[%emt 0:03:11]} 57. Bxf7 {[%emt 0:00:55]} Rc8 {[%emt 0:01:40]} 58. Bb3 {[%emt 0:00:19]} Re8 {[%emt 0:02:07]} 59. Rf6+ {[%emt 0:01:16]} Kc5 {[%emt 0:00:19]} 60. b7 {[%emt 0:00:20]} Rb2+ {[%emt 0:00:42]} 61. Rf2 {[%emt 0:00:15]} Rxf2+ {[%emt 0:00:53]} 62. Kxf2 {[%emt 0:00:30]} Rf8+ {[%emt 0:00:30]} 63. Kg2 {[%emt 0:00:30]} 1-0

[Event "World Junior U20 Girls 2018"]
[Site "Gebze"]
[Date "2018.09.11"]
[Round "7"]
[White "Dordzhieva, Dinara"]
[Black "Khomeriki, Nino"]
[Result "1-0"]
[ECO "D37"]
[WhiteElo "2318"]
[BlackElo "2313"]
[Annotator "NA"]
[PlyCount "129"]
[EventDate "2018.09.05"]
[EventType "swiss"]
[EventCountry "TUR"]
[SourceTitle "playchess.com"]
[Source "ChessBase"]
[SourceQuality "1"]
[TimeControl "40/5400+30:1800+30"]

1. d4 {[%emt 0:00:30]} d5 {[%emt 0:00:30]} 2. c4 {[%emt 0:00:30]} e6 {[%emt 0:00:30]} 3. Nc3 {[%emt 0:00:00]} Be7 {[%emt 0:00:00]} 4. Bf4 {[%emt 0:00:00]} Nf6 {[%emt 0:07:30]} 5. e3 {[%emt 0:02:30]} c6 {[%emt 0:04:30]} 6. h3 {[%emt 0:01:30]} O-O {[%emt 0:01:30]} 7. Nf3 {[%emt 0:00:30]} Nbd7 {[%emt 0:06:30]} 8. Bd3 {[%emt 0:09:30]} dxc4 {[%emt 0:22:30]} 9. Bxc4 {[%emt 0:00:30] LiveBook: 17 Partien} Nb6 {[%emt 0:11:30]} 10. Bd3 {[%emt 0:03:00] D37: Queen's Gambit Declined: 5 Bf4} (10. Bb3 Nbd5 11. Bh2 Qa5 12. Rc1 Nxc3 13. bxc3 c5 14. Ne5 cxd4 15. exd4 Ba3 16. Rc2 Bd7 17. O-O Rac8 {1-0 (33) Jedynak,R (2394)-Hlavnicka,J (2166) Czech Republic 2016}) 10... Nbd5 {[%emt 0:03:30]} 11. Bh2 {[%emt 0:02:30]} Qa5 {[%emt 0:01:30]} 12. Qb3 {[%emt 0:06:30]} c5 {[%emt 0:00:30]} 13. O-O {[%emt 0:04:30]} cxd4 {[%emt 0:00:30]} 14. Nxd5 {[%emt 0:00:30]} Qxd5 {[%emt 0:03:30]} 15. Bc4 $146 {[%emt 0:07:00]} ({Predecessor:} 15. Nxd4) 15... Qa5 {[%emt 0:02:30]} 16. Nxd4 {[%emt 0:01:30]} Qb4 {[%emt 0:09:30]} 17. Qxb4 {[%emt 0:03:30]} Bxb4 {[%emt 0:00:30]} 18. Rfd1 {[%emt 0:02:30]} Bd7 {[%emt 0:03:00]} 19. Be2 {[%emt 0:00:30]} Rac8 {[%emt 0:06:59]} 20. Bf3 {[%emt 0:02:30]} Nd5 {[%emt 1:33:42]} 21. Rac1 {[%emt 1:02:30]} Rxc1 {[%emt 0:00:30]} 22. Rxc1 {[%emt 0:00:30]} Rc8 {[%emt 0:00:30]} 23. Rd1 {[%emt 0:00:30]} Ba4 {[%emt 0:00:30]} 24. Nb3 {[%emt 0:00:30]} f6 {[%emt 0:00:30]} 25. Bg4 {[%emt 0:03:30]} f5 {[%emt 0:00:23]} 26. Bf3 {[%emt 0:01:30]} Be7 {[%emt 0:02:12]} 27. Be5 {[%emt 0:02:30]} Nb4 {[%emt 0:02:32]} 28. Bxb7 {[%emt 0:16:28]} Rc2 {[%emt 0:00:30]} 29. Nd4 {[%emt 0:00:01]} Rxb2 {[%emt 0:01:02]} 30. Nxe6 {[%emt 0:00:08]} Rxa2 {[%emt 0:01:18]} 31. Rc1 {[%emt 0:01:09]} Bb3 {[%emt 0:01:13]} (31... Kf7 $16 {might work better.}) 32. Nd4 {[%emt 0:11:31]} Bd5 {[%emt 0:00:11]} 33. Rc8+ {[%emt 0:03:30]} Kf7 {[%emt 0:00:20]} 34. Rc7 {[%emt 0:00:00]} Bxb7 {[%emt 0:01:12]} 35. Rxb7 {[%emt 0:00:00]} Nd5 {[%emt 0:00:22]} 36. Nxf5 {[%emt 0:00:19]} Ke6 {[%emt 0:00:21]} 37. Nxe7 {[%emt 0:00:37]} Nxe7 {[%emt 0:01:00]} 38. Bxg7 {[%emt 0:00:03]} h5 {[%emt 0:00:10]} 39. g4 {[%emt 0:01:07]} hxg4 {[%emt 0:00:27]} 40. hxg4 {[%emt 0:00:00]} a5 {[%emt 0:00:00]} 41. Ra7 {[%emt 0:04:07]} Nd5 {[%emt 0:01:35]} 42. Bd4 {[%emt 0:00:30]} Nb4 {[%emt 0:02:30]} 43. Bc3 {[%emt 0:02:30]} Nd3 {[%emt 0:00:30]} 44. Ra6+ {[%emt 0:01:30]} Ke7 {[%emt 0:03:30]} 45. g5 {[%emt 0:05:30]} Rc2 {[%emt 0:05:53]} 46. Bf6+ {[%emt 0:01:30]} Kf7 {[%emt 0:00:20]} 47. Bd4 {[%emt 0:00:30]} Rxf2 {[%emt 0:03:14]} 48. g6+ {[%emt 0:00:30]} Kg8 {[%emt 0:00:02]} 49. Rxa5 {[%emt 0:00:30]} Rf3 {[%emt 0:02:12]} 50. Ra8+ {[%emt 0:00:30]} Rf8 {[%emt 0:00:30]} 51. Ra7 {[%emt 0:00:00]} Rd8 {[%emt 0:01:29]} 52. Rg7+ {[%emt 0:01:00]} Kf8 {[%emt 0:00:12]} 53. Rf7+ {[%emt 0:00:30]} Kg8 {[%emt 0:00:11]} 54. Rh7 {[%emt 0:00:30]} Rxd4 {[%emt 0:00:46]} 55. exd4 {[%emt 0:00:30]} Nf4 {[%emt 0:00:00]} 56. Kf2 {[%emt 0:00:00]} Nxg6 {[%emt 0:00:23]} 57. Rb7 {[%emt 0:00:00]} Kf8 {[%emt 0:00:14]} 58. Ke3 {[%emt 0:00:00]} Ke8 {[%emt 0:02:38]} 59. Ke4 {[%emt 0:00:00]} Kd8 {[%emt 0:00:00]} 60. Kd5 {[%emt 0:00:30]} Nf4+ {[%emt 0:01:04]} 61. Kd6 {[%emt 0:00:30]} Kc8 {[%emt 0:00:00]} 62. Rf7 {[%emt 0:00:00]} Ne2 {[%emt 0:00:00]} 63. d5 {[%emt 0:00:00]} Nd4 {[%emt 0:00:00]} 64. Rf8+ {[%emt 0:00:30]} Kb7 {[%emt 0:00:33]} 65. Kd7 {[%emt 0:00:30]} 1-0

[Event "World Junior U20 Girls 2018"]
[Site "Gebze"]
[Date "2018.09.11"]
[Round "7"]
[White "Gorti, Akshita"]
[Black "Tsolakidou, Stavroula"]
[Result "1-0"]
[ECO "E46"]
[WhiteElo "2315"]
[BlackElo "2393"]
[Annotator "NA"]
[PlyCount "75"]
[EventDate "2018.09.05"]
[EventType "swiss"]
[EventCountry "TUR"]
[SourceTitle "playchess.com"]
[Source "ChessBase"]
[SourceQuality "1"]
[TimeControl "40/5400+30:1800+30"]

1. d4 {[%emt 0:00:30]} Nf6 {[%emt 0:00:30]} 2. c4 {[%emt 0:00:30]} e6 {[%emt 0:00:30]} 3. Nc3 {[%emt 0:00:30]} Bb4 {[%emt 0:00:00]} 4. e3 {[%emt 0:00:00]} O-O {[%emt 0:00:00]} 5. Nge2 {[%emt 0:00:30]} c6 {[%emt 0:03:30] E46: Nimzo-Indian: Rubinstein: 4 e3 0-0 5 Ne2 without early Bd3} (5... Re8 6. a3 Bf8 7. d5 d6 8. g3 exd5 9. cxd5 c5 10. Bg2 Nbd7 11. O-O c4 12. Nd4 Nc5 13. Qe2 Nd3 14. b3 Nxc1 15. Rfxc1 cxb3 {½-½ (74) Caruana,F (2822)-So,W (2780) Saint Louis 2018}) 6. a3 {[%emt 0:00:00]} Ba5 {[%emt 0:00:30]} 7. Qc2 {[%emt 0:01:30]} d5 {[%emt 0:05:00]} 8. Ng3 {[%emt 0:00:30]} Nbd7 {[%emt 0:03:30]} 9. Be2 {[%emt 0:02:30] LiveBook: 38 Games} Bc7 {[%emt 0:15:30]} 10. O-O {[%emt 0:01:30]} dxc4 {[%emt 0:05:30]} 11. Bxc4 {[%emt 0:01:30]} e5 {[%emt 0:01:30]} 12. Rd1 {[%emt 0:03:30]} exd4 {[%emt 0:03:30]} 13. Rxd4 {[%emt 0:01:30]} Qe8 $146 {[%emt 0:07:30]} 14. Nce4 {[%emt 0:22:30]} c5 {[%emt 0:18:30]} 15. Nd6 {[%emt 0:05:30]} Bxd6 {[%emt 0:00:00]} 16. Rxd6 {[%emt 0:00:30]} Qe5 {[%emt 0:00:00] [#]} 17. Rd1 $1 {[%emt 0:02:30]} Nb6 {[%emt 0:01:30]} 18. Be2 {[%emt 0:07:30]} Bd7 {[%emt 0:05:30]} 19. Bd2 {[%emt 0:05:30]} Rac8 {[%emt 0:00:30]} 20. Bc3 {[%emt 0:05:30]} Qe6 {[%emt 1:18:00]} 21. a4 {[%emt 1:18:30]} Nbd5 {[%emt 0:00:30]} 22. Bxf6 {[%emt 0:00:30]} Nxf6 {[%emt 0:00:30]} 23. Bc4 {[%emt 0:00:30]} Qe5 {[%emt 0:00:30]} 24. Qb3 {[%emt 0:00:30]} Bc6 {[%emt 0:02:30]} 25. Rd2 {[%emt 0:03:19]} g6 {[%emt 0:01:54]} 26. Rad1 {[%emt 0:02:36]} Qe7 {[%emt 0:10:15]} 27. h3 {[%emt 0:08:29]} b6 {[%emt 0:02:33]} 28. Rd6 {[%emt 0:02:17]} Ne8 {[%emt 0:02:37]} 29. R6d2 {[%emt 0:00:30]} Nf6 {[%emt 0:00:00]} 30. f3 {[%emt 0:02:05]} Kg7 {[%emt 0:00:37]} 31. Qc3 {[%emt 0:01:55]} Bxa4 {[%emt 0:01:57]} 32. Ne4 {[%emt 0:03:25]} Bc6 $18 {[%emt 0:03:31]} (32... Bxd1 {[#]} 33. Rd7 $3 $18 {[%mdl 512]}) (32... b5 {was worth a try.}) 33. Bd5 {[%emt 0:01:11]} Rfd8 {[%emt 0:00:34]} 34. g4 {[%emt 0:00:27]} h6 {[%emt 0:00:17]} 35. h4 {[%emt 0:00:33]} g5 {[%emt 0:00:21]} 36. hxg5 {[%emt 0:00:53]} hxg5 {[%emt 0:00:04]} 37. Ng3 {[%emt 0:00:13]} Qc7 {[%emt 0:01:38]} 38. Nh5+ {[%emt 0:00:09]} 1-0

[Event "World Junior U20 Girls 2018"]
[Site "Gebze"]
[Date "2018.09.11"]
[Round "7"]
[White "Unuk, Laura"]
[Black "Nurgali, Nazerke"]
[Result "0-1"]
[ECO "E18"]
[WhiteElo "2299"]
[BlackElo "2080"]
[Annotator "NA"]
[PlyCount "84"]
[EventDate "2018.09.05"]
[EventType "swiss"]
[EventCountry "TUR"]
[SourceTitle "playchess.com"]
[Source "ChessBase"]
[SourceQuality "1"]
[TimeControl "40/5400+30:1800+30"]

1. d4 {[%emt 0:00:30]} Nf6 {[%emt 0:00:30]} 2. Nf3 {[%emt 0:00:30]} e6 {[%emt 0:00:30]} 3. c4 {[%emt 0:00:00]} d5 {[%emt 0:00:30]} 4. g3 {[%emt 0:00:00]} Be7 {[%emt 0:00:00]} 5. Bg2 {[%emt 0:00:30]} O-O {[%emt 0:01:30]} 6. O-O {[%emt 0:00:00]} b6 {[%emt 0:01:30]} 7. cxd5 {[%emt 0:00:30]} exd5 {[%emt 0:00:30]} 8. Nc3 {[%emt 0:00:30]} Bb7 {[%emt 0:01:00]} 9. Bf4 {[%emt 0:00:30]} Na6 {[%emt 0:01:30]} 10. Rc1 {[%emt 0:00:30]} c5 {[%emt 0:01:30]} 11. Qc2 {[%emt 0:01:00] E18: Queen's Indian: Old Main Line (4 g3 Bb7 5 Bg2 Be7 6 0-0 0-0 7 Nc3)} (11. Ne5 Nc7 12. dxc5 bxc5 13. Qa4 Ne6 14. Rfd1 Nxf4 15. gxf4 Re8 16. Nxd5 Bxd5 17. Bxd5 Nxd5 18. Qc4 Bf8 19. Nxf7 Qf6 20. Ne5 Re6 21. Rxd5 Kh8 22. Rc3 Rb8 23. Nd7 Qg6+ 24. Rg5 {1-0 (24) Priyadharshan,K (2530)-Morrison,W (2334) Washington DC 2018}) 11... Nc7 {[%emt 0:09:30]} 12. Rfd1 {[%emt 0:04:30]} Ne6 {[%emt 0:01:30]} 13. e3 $146 {[%emt 0:00:30]} ({Predecessor:} 13. Be5 c4 14. b3 Rc8 15. bxc4 Rxc4 16. Nd2 Rc8 17. Qb3 Ne4 18. Ndxe4 dxe4 19. Ra1 Qd7 20. Nxe4 Bd5 21. Qd3 f6 22. Bf4 Nxf4 23. gxf4 {1-0 (23) Vekshenkov,N (2390)-Tregubov,A Pavlodar 1991}) 13... Nxf4 {[%emt 0:02:30]} 14. exf4 {[%emt 0:01:00]} c4 {[%emt 0:02:30]} 15. Ne5 {[%emt 0:00:30]} Qc7 {[%emt 0:04:30]} 16. Re1 {[%emt 0:05:30]} a6 {[%emt 0:02:30]} 17. a4 {[%emt 0:03:30]} Bb4 {[%emt 0:06:30]} 18. g4 {[%emt 0:04:30]} Rad8 {[%emt 0:15:30]} 19. Re3 {[%emt 0:02:30]} Bxc3 {[%emt 0:09:30]} 20. Rxc3 {[%emt 0:03:30]} b5 {[%emt 0:00:30]} 21. Rh3 {[%emt 0:01:30]} g6 {[%emt 0:02:30]} 22. g5 {[%emt 0:23:30]} Nd7 {[%emt 0:04:30]} ({Black should try} 22... Nh5 $15) 23. Re1 {[%emt 0:01:30]} (23. axb5 $11 axb5 24. Ra3) 23... Nxe5 24. fxe5 Bc8 25. Rh6 {[%emt 1:08:30]} b4 {[%emt 1:27:33]} 26. Re3 {[%emt 0:00:30]} Be6 {[%emt 0:00:30]} 27. Rf3 {[%emt 0:00:30]} c3 {[%emt 0:00:30]} 28. bxc3 {[%emt 0:00:30]} Rc8 {[%emt 0:00:30]} 29. Bh3 {[%emt 0:00:30]} Kg7 {[%emt 0:03:32]} 30. Bxe6 {[%emt 0:07:30]} fxe6 {[%emt 0:00:02]} 31. Rfh3 {[%emt 0:01:30]} Rh8 {[%emt 0:00:12]} 32. Rg3 {[%emt 0:00:00]} Qc4 {[%emt 0:02:31]} 33. Rf3 {[%emt 0:11:23]} b3 {[%emt 0:02:26]} 34. Qd2 $19 {[%emt 0:10:53]} Rb8 {[%emt 0:02:48]} 35. Qb2 {[%emt 0:04:41]} Qxa4 {[%emt 0:00:42]} 36. c4 {[%emt 0:00:02]} Qa2 {[%emt 0:01:15]} 37. Qc3 {[%emt 0:00:10]} b2 {[%emt 0:00:20]} 38. cxd5 {[%emt 0:00:17]} b1=Q+ {[%emt 0:00:36]} 39. Kg2 {[%emt 0:00:04]} Qac2 {[%emt 0:00:59]} 40. Qa3 {[%emt 0:00:00]} Qb7 {[%emt 0:00:00]} 41. dxe6 {[%emt 0:05:30]} Qce4 {[%emt 0:08:04]} 42. Rhh3 {[%emt 0:01:30]} Rhf8 {[%emt 0:02:30]} 0-1

[Event "World Junior U20 Girls 2018"]
[Site "Gebze"]
[Date "2018.09.11"]
[Round "7"]
[White "Antova, Gabriela"]
[Black "Assaubayeva, Bibisara"]
[Result "1/2-1/2"]
[ECO "E63"]
[WhiteElo "2292"]
[BlackElo "2371"]
[Annotator "NA"]
[PlyCount "105"]
[EventDate "2018.09.05"]
[EventType "swiss"]
[EventCountry "TUR"]
[SourceTitle "playchess.com"]
[Source "ChessBase"]
[SourceQuality "1"]
[TimeControl "40/5400+30:1800+30"]

1. d4 {[%emt 0:00:30]} Nf6 {[%emt 0:00:30]} 2. c4 {[%emt 0:00:30]} g6 {[%emt 0:00:30]} 3. Nf3 {[%emt 0:00:00]} Bg7 {[%emt 0:00:00]} 4. g3 {[%emt 0:00:00]} O-O {[%emt 0:00:00]} 5. Bg2 {[%emt 0:00:00]} d6 {[%emt 0:00:30]} 6. O-O {[%emt 0:00:00]} Nc6 {[%emt 0:00:30] LiveBook: 5576 Games} 7. Nc3 {[%emt 0:00:30]} a6 {[%emt 0:00:30]} 8. h3 {[%emt 0:00:00]} Rb8 {[%emt 0:00:30]} 9. e4 {[%emt 0:00:30]} b5 {[%emt 0:00:30]} 10. d5 {[%emt 0:00:30] E63: King's Indian: Fianchetto: Panno Variation with 7...a6} b4 {[%emt 0:02:30]} 11. Ne2 {[%emt 0:00:00]} Na5 {[%emt 0:01:30]} 12. Qc2 {[%emt 0:00:30]} c5 {[%emt 0:04:30]} (12... c6 13. Nfd4 cxd5 14. exd5 Qc7 15. b3 e5 16. dxe6 fxe6 17. a3 bxa3 {1-0 (45) Aronian,L (2812)-Nakamura,H (2789) Zuerich 2014 CBM 159 [Krasenkow,M]}) 13. Be3 {[%emt 0:00:30] [#]} Qb6 $146 {[%emt 0:06:30]} ({Predecessor:} 13... e5 14. b3 Nb7 15. Rae1 Bd7 16. Bc1 Qc8 17. Kh2 Ne8 {½-½ (40) Nielsen,P (2654)-Berg,E (2575) Sweden 2016}) 14. b3 {[%emt 0:06:30]} Nb7 {[%emt 0:02:30]} 15. a4 {[%emt 0:09:30]} Ne8 {[%emt 0:03:30]} 16. Rae1 {[%emt 0:02:30]} Nd8 {[%emt 0:02:30]} 17. Nf4 {[%emt 0:07:30]} e5 {[%emt 0:03:30]} 18. Nd3 {[%emt 0:04:30]} f5 {[%emt 0:02:30]} 19. Nd2 {[%emt 0:02:30]} Nf6 {[%emt 0:04:30]} 20. Kh2 {[%emt 0:01:30]} Nf7 {[%emt 0:07:30]} 21. f4 {[%emt 0:03:30]} fxe4 {[%emt 0:00:30]} 22. Nxe4 {[%emt 0:00:30]} Bf5 {[%emt 0:02:30]} 23. Bc1 {[%emt 0:14:30]} Rbe8 {[%emt 0:11:30]} 24. Nxf6+ {[%emt 0:05:30]} Bxf6 {[%emt 0:00:30]} 25. Qd1 {[%emt 0:01:30]} (25. Be4 $1 $14) 25... Qd8 {[%emt 0:06:30]} 26. Re2 {[%emt 1:19:00]} Bxd3 {[%emt 1:18:00]} 27. Qxd3 {[%emt 0:00:30]} exf4 {[%emt 0:00:30]} 28. Bxf4 {[%emt 0:00:30]} Rxe2 {[%emt 0:00:30]} 29. Qxe2 {[%emt 0:00:30]} Be5 {[%emt 0:00:30]} 30. Be4 {[%emt 0:04:30]} Bxf4 {[%emt 0:05:30]} 31. Rxf4 {[%emt 0:01:46]} Re8 {[%emt 0:04:32]} 32. Qg2 {[%emt 0:02:49]} Qe7 {[%emt 0:02:02]} 33. Bc2 {[%emt 0:01:58]} Qd8 {[%emt 0:08:59]} ({Black should play} 33... Qe3 $17) 34. Re4 {[%emt 0:01:20]} Rxe4 {[%emt 0:01:21]} 35. Qxe4 {[%emt 0:01:16]} Qf6 {[%emt 0:00:24]} 36. Qe2 {[%emt 0:02:13]} Qc3 {[%emt 0:01:38]} 37. Kg2 {[%emt 0:06:14]} Ne5 {[%emt 0:01:18]} 38. Kf2 {[%emt 0:01:01]} Kg7 {[%emt 0:00:07]} 39. Kg2 {[%emt 0:01:26]} h5 {[%emt 0:01:14]} 40. Bd1 {[%emt 0:00:00]} Qd4 {[%emt 0:00:00]} 41. Bc2 {[%emt 0:04:27]} h4 {[%emt 0:06:55]} 42. gxh4 {[%emt 0:08:30]} Qxh4 {[%emt 0:00:30]} 43. Qe4 {[%emt 0:00:30]} Qg5+ {[%emt 0:01:30]} 44. Kf2 {[%emt 0:01:30]} a5 {[%emt 0:03:30]} (44... Qc1 $17) 45. h4 {[%emt 0:05:50]} Qd2+ {[%emt 0:01:30]} 46. Kg3 {[%emt 0:00:10]} Kh7 {[%emt 0:06:01]} 47. Kh3 {[%emt 0:01:10]} Kh6 {[%emt 0:02:16]} 48. Kg3 {[%emt 0:10:37]} Kg7 $17 {[%emt 0:04:05]} 49. Kh3 {[%emt 0:00:10]} Qf2 {[%emt 0:01:15]} 50. h5 {[%emt 0:03:23]} gxh5 {[%emt 0:04:21]} 51. Qh7+ {[%emt 0:00:07]} Kf8 {[%emt 0:01:24]} 52. Qh6+ {[%emt 0:00:06]} Kg8 {[%emt 0:01:15]} 53. Qh7+ {[%emt 0:00:07]} 1/2-1/2

[Event "World Junior U20 Girls 2018"]
[Site "Gebze"]
[Date "2018.09.11"]
[Round "7"]
[White "Chitlange Sakshi"]
[Black "Ivana Maria, Furtado"]
[Result "1-0"]
[ECO "A57"]
[WhiteElo "2279"]
[BlackElo "2144"]
[Annotator "NA"]
[PlyCount "63"]
[EventDate "2018.09.05"]
[EventType "swiss"]
[EventCountry "TUR"]
[SourceTitle "playchess.com"]
[Source "ChessBase"]
[SourceQuality "1"]
[TimeControl "40/5400+30:1800+30"]

1. d4 {[%emt 0:00:30]} Nf6 {[%emt 0:00:30]} 2. c4 {[%emt 0:00:00]} c5 {[%emt 0:00:30]} 3. d5 {[%emt 0:00:00]} b5 {[%emt 0:00:00]} 4. Qc2 {[%emt 0:00:30]} bxc4 {[%emt 0:00:00]} 5. e4 {[%emt 0:00:00]} e6 {[%emt 0:00:30] A57: Wolga/Benkö-Gambit} (5... d6 6. Bxc4 g6 7. Nc3 Bg7 8. Nf3 Nbd7 9. h3 O-O 10. O-O Rb8 11. Re1 Nh5 12. Be2 Ne5 13. Nxe5 Bxe5 14. Bxh5 gxh5 15. Bh6 Re8 16. Qd2 Kh8 17. Bf4 Bd4 18. Be3 {0-1 (63) Dreev,A (2644)-Perunovic,M (2622) Berlin 2015}) 6. Bxc4 {[%emt 0:02:00]} exd5 {[%emt 0:00:30]} 7. exd5 {[%emt 0:00:00]} d6 {[%emt 0:00:30]} 8. Ne2 {[%emt 0:06:00]} Be7 {[%emt 0:00:30]} 9. Nbc3 {[%emt 0:01:30]} O-O {[%emt 0:00:30]} 10. O-O {[%emt 0:00:30]} Nbd7 {[%emt 0:00:30]} 11. b3 {[%emt 0:06:30]} Nb6 {[%emt 0:00:30]} 12. Bb2 {[%emt 0:00:30]} Nxc4 {[%emt 0:02:30]} 13. bxc4 {[%emt 0:00:30]} Rb8 $146 {[%emt 0:00:30]} 14. Nd1 {[%emt 0:00:30]} Re8 {[%emt 0:00:30]} 15. Rb1 {[%emt 0:00:30]} Bd7 {[%emt 0:00:30]} 16. Ne3 {[%emt 0:04:30]} Ng4 {[%emt 0:24:30]} 17. Nxg4 {[%emt 0:14:30]} Bxg4 {[%emt 0:00:30]} 18. Ng3 {[%emt 0:01:30]} Bf6 {[%emt 0:06:30]} 19. Bxf6 {[%emt 0:01:30]} Qxf6 {[%emt 0:00:00]} 20. Qa4 {[%emt 0:00:30]} h5 {[%emt 0:10:00]} 21. h3 {[%emt 0:20:30]} h4 {[%emt 0:00:30]} 22. Rxb8 {[%emt 0:00:30]} Rxb8 {[%emt 0:00:30]} 23. Qxa7 {[%emt 0:04:30]} Rb4 {[%emt 0:21:30]} 24. Ne4 $16 {[%emt 0:08:30]} (24. hxg4 $18 hxg3 25. fxg3) 24... Qg6 {[%emt 0:01:30]} 25. Qe7 {[%emt 0:00:30]} Bd7 {[%emt 0:13:39]} 26. Qd8+ {[%emt 0:07:32]} Kh7 {[%emt 0:00:04]} 27. Ng5+ {[%emt 0:00:00]} Kh6 {[%emt 0:00:27]} 28. f4 {[%emt 0:01:00]} Qf5 {[%emt 0:00:55]} 29. Qh8+ {[%emt 0:00:22]} Kg6 {[%emt 0:00:28]} 30. Qh7+ {[%emt 0:00:12]} Kf6 {[%emt 0:00:00]} 31. Qxh4 {[%emt 0:00:59]} Rb8 {[%emt 0:03:57]} 32. g4 {[%emt 0:02:36]} 1-0